[Event "Late-Titled-Tuesday-Blitz-September-05-2023"]
[Site "Chess.com"]
[Date "2023.09.05"]
[Round "7"]
[White "ErikRonka"]
[Black "IlanSchnaider"]
[Result "0-1"]
[WhiteElo "2487"]
[BlackElo "2741"]
[TimeControl "180+1"]
[EndTime "15:18:07 PDT"]
[Termination "IlanSchnaider won on time"]

1. e4 {[%clk 0:03:00.9]} 1... c5 {[%clk 0:02:57.9]} 2. Nf3 {[%clk 0:03:01.2]}
2... d6 {[%clk 0:02:57.9]} 3. Bb5+ {[%clk 0:03:00.8]} 3... Bd7 {[%clk
0:02:57.3]} 4. Bxd7+ {[%clk 0:03:01.2]} 4... Qxd7 {[%clk 0:02:58.2]} 5. c4
{[%clk 0:03:01.2]} 5... Nf6 {[%clk 0:02:56.2]} 6. Nc3 {[%clk 0:03:01.6]} 6... g6
{[%clk 0:02:56.5]} 7. d4 {[%clk 0:03:02]} 7... cxd4 {[%clk 0:02:56.3]} 8. Nxd4
{[%clk 0:03:02.9]} 8... Bg7 {[%clk 0:02:56.4]} 9. b3 {[%clk 0:03:03.5]} 9... O-O
{[%clk 0:02:56.8]} 10. Bb2 {[%clk 0:03:04]} 10... Nc6 {[%clk 0:02:56.7]} 11. O-O
{[%clk 0:03:04.1]} 11... Rac8 {[%clk 0:02:54.5]} 12. Nd5 {[%clk 0:02:56.7]}
12... Nxe4 {[%clk 0:02:47.8]} 13. Re1 {[%clk 0:02:50.3]} 13... f5 {[%clk
0:01:54.9]} 14. f3 {[%clk 0:02:45.4]} 14... Nxd4 {[%clk 0:01:08]} 15. Bxd4
{[%clk 0:02:44.5]} 15... e5 {[%clk 0:01:01]} 16. Bxa7 {[%clk 0:02:07.4]} 16...
Nc5 {[%clk 0:00:31.8]} 17. Nb6 {[%clk 0:02:02.9]} 17... Qc6 {[%clk 0:00:29.3]}
18. Nxc8 {[%clk 0:02:01.6]} 18... Rxc8 {[%clk 0:00:29.7]} 19. Bxc5 {[%clk
0:01:38.1]} 19... Qxc5+ {[%clk 0:00:28.9]} 20. Kh1 {[%clk 0:01:38.8]} 20... e4
{[%clk 0:00:26.9]} 21. Rc1 {[%clk 0:01:37.2]} 21... e3 {[%clk 0:00:26.9]} 22. f4
{[%clk 0:01:34.1]} 22... Bd4 {[%clk 0:00:18.6]} 23. h3 {[%clk 0:01:30.4]} 23...
Re8 {[%clk 0:00:18.5]} 24. b4 {[%clk 0:01:11.9]} 24... Qa7 {[%clk 0:00:17]} 25.
c5 {[%clk 0:01:00.7]} 25... dxc5 {[%clk 0:00:17.3]} 26. bxc5 {[%clk 0:01:01]}
26... Re4 {[%clk 0:00:18]} 27. Qb3+ {[%clk 0:00:59.9]} 27... Kg7 {[%clk
0:00:18.2]} 28. Rb1 {[%clk 0:00:56.7]} 28... Qxc5 {[%clk 0:00:14.8]} 29. Qxb7+
{[%clk 0:00:55.7]} 29... Re7 {[%clk 0:00:15.4]} 30. Qf3 {[%clk 0:00:41]} 30...
Bc3 {[%clk 0:00:13.4]} 31. Re2 {[%clk 0:00:38.3]} 31... Re4 {[%clk 0:00:05.5]}
32. Rc1 {[%clk 0:00:29.5]} 32... Qd4 {[%clk 0:00:04.8]} 33. Rec2 {[%clk
0:00:28]} 33... Rxf4 {[%clk 0:00:04.1]} 34. Qb7+ {[%clk 0:00:26.2]} 34... Kh6
{[%clk 0:00:04.6]} 35. Rxc3 {[%clk 0:00:24.3]} 35... e2 {[%clk 0:00:04.8]} 36.
Kh2 {[%clk 0:00:08.4]} 36... Rf1 {[%clk 0:00:03.7]} 37. Qc8 {[%clk 0:00:01.8]}
37... Qf4+ {[%clk 0:00:03.3]} 0-1

[Event "Late-Titled-Tuesday-Blitz-September-05-2023"]
[Site "Chess.com"]
[Date "2023.09.05"]
[Round "7"]
[White "GMForgacs"]
[Black "szachuspl"]
[Result "0-1"]
[WhiteElo "2402"]
[BlackElo "2548"]
[TimeControl "180+1"]
[EndTime "15:18:07 PDT"]
[Termination "szachuspl won by resignation"]

1. e4 {[%clk 0:03:00.9]} 1... g6 {[%clk 0:02:54.3]} 2. d4 {[%clk 0:03:00.7]}
2... Bg7 {[%clk 0:02:54.9]} 3. Nc3 {[%clk 0:03:01.3]} 3... c5 {[%clk 0:02:55.5]}
4. d5 {[%clk 0:03:01.3]} 4... d6 {[%clk 0:02:53.5]} 5. Nf3 {[%clk 0:03:01.9]}
5... a6 {[%clk 0:02:53.4]} 6. Bd3 {[%clk 0:02:59.2]} 6... b5 {[%clk 0:02:53]} 7.
O-O {[%clk 0:02:58]} 7... Bg4 {[%clk 0:02:48.1]} 8. Re1 {[%clk 0:02:57.1]} 8...
Nd7 {[%clk 0:02:47.5]} 9. h3 {[%clk 0:02:57.1]} 9... Bxf3 {[%clk 0:02:47.6]} 10.
Qxf3 {[%clk 0:02:57.8]} 10... Ngf6 {[%clk 0:02:44.3]} 11. a4 {[%clk 0:02:56.4]}
11... c4 {[%clk 0:02:31]} 12. Bf1 {[%clk 0:02:55.2]} 12... Rb8 {[%clk
0:02:25.1]} 13. axb5 {[%clk 0:02:54.1]} 13... axb5 {[%clk 0:02:25.5]} 14. Ra7
{[%clk 0:02:45.9]} 14... O-O {[%clk 0:02:24.4]} 15. Qg3 {[%clk 0:02:29.7]} 15...
Nc5 {[%clk 0:02:19.8]} 16. Bf4 {[%clk 0:02:14.3]} 16... b4 {[%clk 0:02:18.1]}
17. Na4 {[%clk 0:01:56.5]} 17... Nfxe4 {[%clk 0:02:13]} 18. Qf3 {[%clk
0:01:51.2]} 18... Nxa4 {[%clk 0:01:55.9]} 19. Qxe4 {[%clk 0:01:28.9]} 19... Nxb2
{[%clk 0:01:56]} 20. Qxe7 {[%clk 0:01:27.7]} 20... Qxe7 {[%clk 0:01:52.5]} 21.
Rexe7 {[%clk 0:01:23.7]} 21... Bd4 {[%clk 0:01:38.4]} 22. Rac7 {[%clk
0:01:11.9]} 22... b3 {[%clk 0:01:35.6]} 23. cxb3 {[%clk 0:01:09.7]} 23... cxb3
{[%clk 0:01:35.7]} 24. Bxd6 {[%clk 0:01:07.4]} 24... Nd1 {[%clk 0:01:33.7]} 25.
Red7 {[%clk 0:00:39.7]} 25... Rfd8 {[%clk 0:01:07.3]} 26. Rxd8+ {[%clk
0:00:20.2]} 26... Rxd8 {[%clk 0:01:06.8]} 27. Bg3 {[%clk 0:00:21.1]} 27... b2
{[%clk 0:01:06.4]} 28. Rb7 {[%clk 0:00:21.2]} 28... Rxd5 {[%clk 0:01:01.9]} 29.
Bc4 {[%clk 0:00:21.8]} 29... Rf5 {[%clk 0:01:02.1]} 30. Kf1 {[%clk 0:00:21.7]}
30... Nxf2 {[%clk 0:01:01.9]} 31. Bxf2 {[%clk 0:00:21.3]} 31... Rxf2+ {[%clk
0:01:02]} 32. Ke1 {[%clk 0:00:21.9]} 32... h5 {[%clk 0:00:48.5]} 33. g4 {[%clk
0:00:22]} 33... hxg4 {[%clk 0:00:48.3]} 34. hxg4 {[%clk 0:00:22.9]} 34... Kg7
{[%clk 0:00:47.9]} 35. Bd3 {[%clk 0:00:22.5]} 35... Rg2 {[%clk 0:00:44.5]} 36.
Be2 {[%clk 0:00:22.1]} 36... Rg1+ {[%clk 0:00:43.7]} 37. Bf1 {[%clk 0:00:22.1]}
37... Rxg4 {[%clk 0:00:43.9]} 38. Kd2 {[%clk 0:00:20.7]} 38... Rg1 {[%clk
0:00:43.1]} 39. Bd3 {[%clk 0:00:19.8]} 39... Be5 {[%clk 0:00:40.4]} 40. Kc2
{[%clk 0:00:19.4]} 40... g5 {[%clk 0:00:39.9]} 41. Rb5 {[%clk 0:00:15.5]} 41...
Bf6 {[%clk 0:00:37.6]} 42. Kd2 {[%clk 0:00:15.1]} 42... g4 {[%clk 0:00:35.8]}
43. Rb7 {[%clk 0:00:13.7]} 43... g3 {[%clk 0:00:35.6]} 44. Ke2 {[%clk
0:00:14.1]} 44... Bd4 {[%clk 0:00:32.3]} 45. Kf3 {[%clk 0:00:14]} 45... g2
{[%clk 0:00:27.5]} 46. Rb4 {[%clk 0:00:09.5]} 46... Rd1 {[%clk 0:00:26.8]} 47.
Rxd4 {[%clk 0:00:07.5]} 47... Rxd3+ {[%clk 0:00:26.6]} 48. Rxd3 {[%clk
0:00:07.5]} 48... g1=Q {[%clk 0:00:27.2]} 49. Ke4 {[%clk 0:00:06.6]} 49... Qg6+
{[%clk 0:00:26]} 50. Kd4 {[%clk 0:00:06.8]} 50... Qxd3+ {[%clk 0:00:26.9]} 51.
Kxd3 {[%clk 0:00:06.9]} 51... b1=Q+ {[%clk 0:00:27.8]} 52. Kc3 {[%clk 0:00:07]}
52... Qe4 {[%clk 0:00:27.4]} 0-1

[Event "Late-Titled-Tuesday-Blitz-September-05-2023"]
[Site "Chess.com"]
[Date "2023.09.05"]
[Round "7"]
[White "MajorCoast"]
[Black "Akhayan"]
[Result "0-1"]
[WhiteElo "2276"]
[BlackElo "2356"]
[TimeControl "180+1"]
[EndTime "15:18:07 PDT"]
[Termination "Akhayan won on time"]

1. d4 {[%clk 0:03:00.9]} 1... Nf6 {[%clk 0:02:56]} 2. Nf3 {[%clk 0:03:01.4]}
2... g6 {[%clk 0:02:56]} 3. Nbd2 {[%clk 0:03:00.4]} 3... Bg7 {[%clk 0:02:53.5]}
4. e4 {[%clk 0:02:59.6]} 4... d6 {[%clk 0:02:54.1]} 5. Bd3 {[%clk 0:02:59.1]}
5... O-O {[%clk 0:02:54.7]} 6. O-O {[%clk 0:02:59.7]} 6... Bg4 {[%clk
0:02:52.2]} 7. h3 {[%clk 0:02:59.2]} 7... Bxf3 {[%clk 0:02:52.5]} 8. Nxf3 {[%clk
0:03:00.1]} 8... Nc6 {[%clk 0:02:52]} 9. Re1 {[%clk 0:03:00.3]} 9... e5 {[%clk
0:02:51.4]} 10. dxe5 {[%clk 0:02:59.9]} 10... Nxe5 {[%clk 0:02:46.5]} 11. Nxe5
{[%clk 0:02:59.3]} 11... dxe5 {[%clk 0:02:46.7]} 12. Be3 {[%clk 0:02:57.7]}
12... c6 {[%clk 0:02:45.3]} 13. Bc4 {[%clk 0:02:57.6]} 13... Qc7 {[%clk
0:02:44.6]} 14. Bc5 {[%clk 0:02:54.8]} 14... Rfd8 {[%clk 0:02:44]} 15. Qe2
{[%clk 0:02:52.4]} 15... b6 {[%clk 0:02:42.8]} 16. Ba3 {[%clk 0:02:49.2]} 16...
c5 {[%clk 0:02:40.7]} 17. Rad1 {[%clk 0:02:47.2]} 17... Rd4 {[%clk 0:02:39.9]}
18. f3 {[%clk 0:02:31.9]} 18... Rad8 {[%clk 0:02:37]} 19. c3 {[%clk 0:02:20.2]}
19... R4d6 {[%clk 0:02:28.9]} 20. b4 {[%clk 0:02:12.7]} 20... cxb4 {[%clk
0:02:23.4]} 21. Bxb4 {[%clk 0:02:10.7]} 21... Rxd1 {[%clk 0:02:22.8]} 22. Rxd1
{[%clk 0:02:01.3]} 22... Nh5 {[%clk 0:02:04.5]} 23. Rxd8+ {[%clk 0:01:52.7]}
23... Qxd8 {[%clk 0:02:04.1]} 24. Qd3 {[%clk 0:01:50.8]} 24... Qxd3 {[%clk
0:02:01.2]} 25. Bxd3 {[%clk 0:01:51.7]} 25... Nf4 {[%clk 0:02:01]} 26. Bc4
{[%clk 0:01:49.9]} 26... Bf8 {[%clk 0:01:54.2]} 27. Kf2 {[%clk 0:01:26.5]} 27...
a5 {[%clk 0:01:53.1]} 28. Bxf8 {[%clk 0:01:24.2]} 28... Kxf8 {[%clk 0:01:53.7]}
29. h4 {[%clk 0:01:24.7]} 29... Ke7 {[%clk 0:01:49.1]} 30. g3 {[%clk 0:01:24.9]}
30... Nh5 {[%clk 0:01:38.4]} 31. a4 {[%clk 0:01:12.5]} 31... h6 {[%clk
0:01:35.2]} 32. g4 {[%clk 0:01:06.1]} 32... Nf4 {[%clk 0:01:28.2]} 33. Bb5
{[%clk 0:00:52.2]} 33... g5 {[%clk 0:01:27.3]} 34. hxg5 {[%clk 0:00:50.9]} 34...
hxg5 {[%clk 0:01:27.2]} 35. Ke3 {[%clk 0:00:49.4]} 35... Kd6 {[%clk 0:01:26.3]}
36. Bc4 {[%clk 0:00:46.2]} 36... f6 {[%clk 0:01:25.8]} 37. Bb5 {[%clk
0:00:43.4]} 37... Kc5 {[%clk 0:01:25.8]} 38. Ba6 {[%clk 0:00:35.4]} 38... Ne6
{[%clk 0:01:23.5]} 39. Kd3 {[%clk 0:00:32.1]} 39... Nd8 {[%clk 0:01:17]} 40. Bb5
{[%clk 0:00:31]} 40... Nf7 {[%clk 0:01:16]} 41. Ba6 {[%clk 0:00:28.9]} 41... Nd6
{[%clk 0:01:16.3]} 42. Ke3 {[%clk 0:00:26.3]} 42... Nc4+ {[%clk 0:01:12.5]} 43.
Kd3 {[%clk 0:00:24.7]} 43... Nb2+ {[%clk 0:01:09.6]} 44. Kc2 {[%clk 0:00:23.2]}
44... Nxa4 {[%clk 0:01:10.1]} 45. Kb3 {[%clk 0:00:23]} 45... b5 {[%clk
0:01:03.2]} 46. c4 {[%clk 0:00:18.8]} 46... Nb6 {[%clk 0:00:57.8]} 47. cxb5
{[%clk 0:00:17.1]} 47... Kd4 {[%clk 0:00:46.2]} 48. Bb7 {[%clk 0:00:15.1]} 48...
Ke3 {[%clk 0:00:44.9]} 49. Bd5 {[%clk 0:00:07.6]} 49... Kxf3 {[%clk 0:00:43.6]}
50. Kc3 {[%clk 0:00:06.8]} 50... Kxg4 {[%clk 0:00:42.1]} 51. Kd3 {[%clk
0:00:06.8]} 51... Kf3 {[%clk 0:00:41.6]} 52. Be6 {[%clk 0:00:06]} 52... g4
{[%clk 0:00:40.5]} 53. Kd2 {[%clk 0:00:05.6]} 53... g3 {[%clk 0:00:39.4]} 54.
Bh3 {[%clk 0:00:04.4]} 54... Kf2 {[%clk 0:00:38.2]} 0-1

[Event "Late-Titled-Tuesday-Blitz-September-05-2023"]
[Site "Chess.com"]
[Date "2023.09.05"]
[Round "7"]
[White "egnfanclub"]
[Black "canary2016"]
[Result "0-1"]
[WhiteElo "2293"]
[BlackElo "2078"]
[TimeControl "180+1"]
[EndTime "15:18:08 PDT"]
[Termination "canary2016 won by resignation"]

1. e4 {[%clk 0:03:00.9]} 1... e5 {[%clk 0:02:55.6]} 2. Nc3 {[%clk 0:02:59.5]}
2... Nf6 {[%clk 0:02:52.2]} 3. f4 {[%clk 0:02:59.3]} 3... exf4 {[%clk
0:02:48.4]} 4. e5 {[%clk 0:02:59]} 4... Ng8 {[%clk 0:02:46.2]} 5. Nf3 {[%clk
0:02:58.6]} 5... Nc6 {[%clk 0:02:43.8]} 6. d4 {[%clk 0:02:58.4]} 6... d6 {[%clk
0:02:43.2]} 7. Bb5 {[%clk 0:02:51.4]} 7... dxe5 {[%clk 0:02:41.1]} 8. d5 {[%clk
0:02:47.6]} 8... a6 {[%clk 0:02:37.6]} 9. Ba4 {[%clk 0:02:42.3]} 9... b5 {[%clk
0:02:29.8]} 10. Nxb5 {[%clk 0:02:42.1]} 10... axb5 {[%clk 0:02:28.5]} 11. Bxb5
{[%clk 0:02:43]} 11... Bd7 {[%clk 0:02:12.8]} 12. dxc6 {[%clk 0:02:37.7]} 12...
Be6 {[%clk 0:02:13.1]} 13. Qxd8+ {[%clk 0:02:37.3]} 13... Rxd8 {[%clk
0:02:05.5]} 14. Nxe5 {[%clk 0:02:37.6]} 14... Bd6 {[%clk 0:02:04.1]} 15. Nf3
{[%clk 0:02:32.3]} 15... Nf6 {[%clk 0:02:03.5]} 16. O-O {[%clk 0:02:28]} 16...
O-O {[%clk 0:02:03.4]} 17. Ng5 {[%clk 0:02:02.5]} 17... Bg4 {[%clk 0:01:43.1]}
18. Bd3 {[%clk 0:01:43.4]} 18... h6 {[%clk 0:01:36.9]} 19. Ne4 {[%clk
0:01:42.9]} 19... Nxe4 {[%clk 0:01:32.8]} 20. Bxe4 {[%clk 0:01:43.8]} 20... Bc5+
{[%clk 0:01:29.5]} 21. Kh1 {[%clk 0:01:43]} 21... Be2 {[%clk 0:01:27.9]} 22. Re1
{[%clk 0:01:37.1]} 22... Rfe8 {[%clk 0:01:22.5]} 23. Bf3 {[%clk 0:01:27.2]}
23... Bxf3 {[%clk 0:01:05.2]} 24. Rxe8+ {[%clk 0:01:27]} 24... Rxe8 {[%clk
0:01:05.5]} 25. gxf3 {[%clk 0:01:27.5]} 25... Re1+ {[%clk 0:01:05.7]} 26. Kg2
{[%clk 0:01:27.9]} 26... Be3 {[%clk 0:01:06.2]} 27. Bxe3 {[%clk 0:01:19.7]}
27... Rxa1 {[%clk 0:01:05.1]} 28. Bxf4 {[%clk 0:01:19.2]} 28... Rxa2 {[%clk
0:01:00]} 29. Be5 {[%clk 0:01:03.6]} 29... Ra6 {[%clk 0:00:56.2]} 30. c3 {[%clk
0:00:56.4]} 30... Rxc6 {[%clk 0:00:56]} 31. f4 {[%clk 0:00:55.1]} 31... f6
{[%clk 0:00:51.3]} 32. Bd4 {[%clk 0:00:55]} 32... Kf7 {[%clk 0:00:50.4]} 33. Kf3
{[%clk 0:00:50.8]} 33... Ra6 {[%clk 0:00:49.2]} 34. b4 {[%clk 0:00:47.7]} 34...
Ke6 {[%clk 0:00:49.1]} 35. b5 {[%clk 0:00:45.4]} 35... Ra2 {[%clk 0:00:45.6]}
36. h3 {[%clk 0:00:43.7]} 36... Rb2 {[%clk 0:00:44.9]} 37. c4 {[%clk 0:00:40.3]}
37... Rb4 {[%clk 0:00:44.4]} 38. Ke3 {[%clk 0:00:32.5]} 38... Rxc4 {[%clk
0:00:43.5]} 39. b6 {[%clk 0:00:33.1]} 39... cxb6 {[%clk 0:00:42.1]} 40. Bxb6
{[%clk 0:00:34]} 40... g6 {[%clk 0:00:37.3]} 41. Bd4 {[%clk 0:00:32.9]} 41...
Rc1 {[%clk 0:00:35.5]} 42. Kf3 {[%clk 0:00:32.4]} 42... Kf5 {[%clk 0:00:35.5]}
43. Kg3 {[%clk 0:00:26.5]} 43... Rc4 {[%clk 0:00:28.8]} 44. Be3 {[%clk
0:00:20.4]} 44... Rc3 {[%clk 0:00:29]} 45. Kf2 {[%clk 0:00:20.6]} 45... Ke4
{[%clk 0:00:28.4]} 46. Bd2 {[%clk 0:00:13.8]} 46... Rc2 {[%clk 0:00:27.2]} 47.
Ke1 {[%clk 0:00:13.6]} 47... Kd3 {[%clk 0:00:26.9]} 48. Bb4 {[%clk 0:00:13.4]}
48... Rh2 {[%clk 0:00:21.1]} 49. Be7 {[%clk 0:00:13.4]} 49... Re2+ {[%clk
0:00:16.6]} 50. Kd1 {[%clk 0:00:12.7]} 50... Rxe7 {[%clk 0:00:16]} 0-1

[Event "Late-Titled-Tuesday-Blitz-September-05-2023"]
[Site "Chess.com"]
[Date "2023.09.05"]
[Round "7"]
[White "Cmorales2001"]
[Black "laskakid"]
[Result "1-0"]
[WhiteElo "2431"]
[BlackElo "2242"]
[TimeControl "180+1"]
[EndTime "15:18:17 PDT"]
[Termination "Cmorales2001 won on time"]

1. e4 {[%clk 0:02:59.8]} 1... e5 {[%clk 0:02:59.7]} 2. Nf3 {[%clk 0:02:58.7]}
2... Nc6 {[%clk 0:02:59.7]} 3. Bc4 {[%clk 0:02:58.9]} 3... Nf6 {[%clk
0:02:58.7]} 4. d3 {[%clk 0:02:58.5]} 4... h6 {[%clk 0:02:58.1]} 5. c3 {[%clk
0:02:58.4]} 5... d6 {[%clk 0:02:57.6]} 6. O-O {[%clk 0:02:58.5]} 6... g5 {[%clk
0:02:57.3]} 7. Re1 {[%clk 0:02:55.1]} 7... Bg7 {[%clk 0:02:54]} 8. a4 {[%clk
0:02:54.5]} 8... a5 {[%clk 0:02:42.1]} 9. Na3 {[%clk 0:02:53.5]} 9... O-O {[%clk
0:02:42.4]} 10. Nc2 {[%clk 0:02:53.2]} 10... d5 {[%clk 0:02:34.2]} 11. exd5
{[%clk 0:02:48.2]} 11... Nxd5 {[%clk 0:02:33.5]} 12. Ne3 {[%clk 0:02:48.4]}
12... Nf4 {[%clk 0:02:21.9]} 13. g3 {[%clk 0:02:34.1]} 13... Ng6 {[%clk
0:02:07.3]} 14. Nd2 {[%clk 0:02:22.5]} 14... Kh7 {[%clk 0:02:02.1]} 15. Qh5
{[%clk 0:02:17.2]} 15... f5 {[%clk 0:01:52.7]} 16. Nf3 {[%clk 0:02:13.7]} 16...
g4 {[%clk 0:01:38.8]} 17. Nd2 {[%clk 0:02:03.3]} 17... Nce7 {[%clk 0:01:19.7]}
18. f3 {[%clk 0:01:53]} 18... gxf3 {[%clk 0:01:01.9]} 19. Nxf3 {[%clk
0:01:51.3]} 19... Bf6 {[%clk 0:00:46.6]} 20. Ng2 {[%clk 0:01:35.6]} 20... f4
{[%clk 0:00:40.6]} 21. d4 {[%clk 0:01:29.5]} 21... exd4 {[%clk 0:00:30.2]} 22.
Bxf4 {[%clk 0:01:21.4]} 22... Nxf4 {[%clk 0:00:28.5]} 23. Nxf4 {[%clk 0:01:12]}
23... Bf5 {[%clk 0:00:27.8]} 24. Ne6 {[%clk 0:01:04.4]} 24... Bxe6 {[%clk
0:00:24.3]} 25. Rxe6 {[%clk 0:01:02.6]} 25... Qe8 {[%clk 0:00:23.1]} 26. Bd3+
{[%clk 0:00:59.1]} 26... Kg7 {[%clk 0:00:21.4]} 27. Qg4+ {[%clk 0:00:53.3]}
27... Kh8 {[%clk 0:00:21]} 28. cxd4 {[%clk 0:00:52]} 28... Ra6 {[%clk
0:00:18.6]} 29. Rae1 {[%clk 0:00:50.4]} 29... Rxe6 {[%clk 0:00:18.2]} 30. Qxe6
{[%clk 0:00:49.2]} 30... Qxa4 {[%clk 0:00:14.8]} 31. Qe4 {[%clk 0:00:45.4]}
31... Rf7 {[%clk 0:00:12.6]} 32. Ne5 {[%clk 0:00:40.7]} 32... Rg7 {[%clk
0:00:11.2]} 33. Rf1 {[%clk 0:00:32.3]} 33... Bxe5 {[%clk 0:00:08.5]} 34. Qxe5
{[%clk 0:00:24.8]} 34... Ng8 {[%clk 0:00:07.4]} 35. Rf2 {[%clk 0:00:15.7]} 35...
Qd1+ {[%clk 0:00:06.7]} 36. Bf1 {[%clk 0:00:16.4]} 36... Qg4 {[%clk 0:00:05.9]}
37. Rf7 {[%clk 0:00:16.3]} 37... h5 {[%clk 0:00:04.7]} 38. Rxc7 {[%clk
0:00:15.9]} 38... h4 {[%clk 0:00:04.4]} 39. Rxb7 {[%clk 0:00:16.5]} 39... hxg3
{[%clk 0:00:04.1]} 40. hxg3 {[%clk 0:00:17.4]} 40... Qxg3+ {[%clk 0:00:03.9]}
41. Qxg3 {[%clk 0:00:18.1]} 41... Rxg3+ {[%clk 0:00:04.3]} 42. Kf2 {[%clk
0:00:18.9]} 42... Rg4 {[%clk 0:00:03.2]} 43. Ke3 {[%clk 0:00:19.5]} 43... Nf6
{[%clk 0:00:02.3]} 44. Bd3 {[%clk 0:00:19.4]} 44... Rg3+ {[%clk 0:00:02.1]} 45.
Kd2 {[%clk 0:00:19.8]} 1-0

[Event "Late-Titled-Tuesday-Blitz-September-05-2023"]
[Site "Chess.com"]
[Date "2023.09.05"]
[Round "7"]
[White "Good_Knight_Kiss"]
[Black "boldpilot22622"]
[Result "0-1"]
[WhiteElo "2335"]
[BlackElo "2508"]
[TimeControl "180+1"]
[EndTime "15:18:19 PDT"]
[Termination "boldpilot22622 won on time"]

1. e4 {[%clk 0:03:00.9]} 1... c5 {[%clk 0:03:00]} 2. Nf3 {[%clk 0:03:00.5]} 2...
Nc6 {[%clk 0:03:00.6]} 3. d4 {[%clk 0:02:57.9]} 3... cxd4 {[%clk 0:03:01.5]} 4.
Nxd4 {[%clk 0:02:58.2]} 4... Nf6 {[%clk 0:03:02.1]} 5. Nc3 {[%clk 0:02:58.1]}
5... e5 {[%clk 0:03:00.2]} 6. Ndb5 {[%clk 0:02:57.9]} 6... d6 {[%clk 0:02:58.6]}
7. Nd5 {[%clk 0:02:58.1]} 7... Nxd5 {[%clk 0:02:57.7]} 8. exd5 {[%clk 0:02:59]}
8... Ne7 {[%clk 0:02:58.4]} 9. c4 {[%clk 0:02:59]} 9... Nf5 {[%clk 0:02:58.7]}
10. Bd3 {[%clk 0:02:58.8]} 10... g6 {[%clk 0:02:58.4]} 11. O-O {[%clk
0:02:58.5]} 11... Bg7 {[%clk 0:02:58.6]} 12. Bd2 {[%clk 0:02:53.7]} 12... O-O
{[%clk 0:02:58.5]} 13. Rc1 {[%clk 0:02:46]} 13... Qh4 {[%clk 0:02:51.2]} 14. g3
{[%clk 0:02:22.3]} 14... Qh3 {[%clk 0:02:48.4]} 15. Re1 {[%clk 0:02:22.5]} 15...
a6 {[%clk 0:02:38.8]} 16. Bf1 {[%clk 0:02:18.8]} 16... Qh5 {[%clk 0:02:31.9]}
17. Be2 {[%clk 0:02:01.2]} 17... Qh3 {[%clk 0:02:23.7]} 18. Bg4 {[%clk
0:01:59.3]} 18... Ne3 {[%clk 0:02:23.7]} 19. Bxh3 {[%clk 0:01:55.8]} 19... Nxd1
{[%clk 0:02:23.5]} 20. Bxc8 {[%clk 0:01:46.5]} 20... axb5 {[%clk 0:02:15.6]} 21.
Bxb7 {[%clk 0:01:34.2]} 21... Rab8 {[%clk 0:02:14.6]} 22. Rexd1 {[%clk
0:01:03.2]} 22... Rxb7 {[%clk 0:02:13.2]} 23. c5 {[%clk 0:00:57.8]} 23... dxc5
{[%clk 0:02:14.1]} 24. Rxc5 {[%clk 0:00:57.6]} 24... f5 {[%clk 0:01:41.9]} 25.
d6 {[%clk 0:00:36.5]} 25... Rd7 {[%clk 0:01:36.1]} 26. Bc3 {[%clk 0:00:29.9]}
26... Ra8 {[%clk 0:01:24.4]} 27. a3 {[%clk 0:00:28.2]} 27... e4 {[%clk
0:01:23.2]} 28. Bxg7 {[%clk 0:00:27]} 28... Kxg7 {[%clk 0:01:24.1]} 29. Rxb5
{[%clk 0:00:27]} 29... Ra6 {[%clk 0:01:18.7]} 30. Rbd5 {[%clk 0:00:25.9]} 30...
Rb6 {[%clk 0:01:15.4]} 31. b4 {[%clk 0:00:25.4]} 31... Ra6 {[%clk 0:01:13.9]}
32. Ra1 {[%clk 0:00:20.6]} 32... Kf7 {[%clk 0:01:11.3]} 33. b5 {[%clk
0:00:20.6]} 33... Ra5 {[%clk 0:01:07.7]} 34. a4 {[%clk 0:00:20.3]} 34... Ke6
{[%clk 0:01:04.9]} 35. Rdd1 {[%clk 0:00:19.7]} 35... Rxd6 {[%clk 0:00:58.6]} 36.
Rxd6+ {[%clk 0:00:19.3]} 36... Kxd6 {[%clk 0:00:59.5]} 37. h4 {[%clk 0:00:15.2]}
37... Kc5 {[%clk 0:00:55.1]} 38. Kf1 {[%clk 0:00:15.4]} 38... Ra7 {[%clk
0:00:51.7]} 39. Ke2 {[%clk 0:00:14.7]} 39... Kb6 {[%clk 0:00:42.4]} 40. Ke3
{[%clk 0:00:14.7]} 40... Rd7 {[%clk 0:00:40.3]} 41. Ra2 {[%clk 0:00:14.4]} 41...
Rd3+ {[%clk 0:00:34.9]} 42. Kf4 {[%clk 0:00:14.2]} 42... Rf3+ {[%clk 0:00:35.8]}
43. Kg5 {[%clk 0:00:14.2]} 43... e3 {[%clk 0:00:33.1]} 44. fxe3 {[%clk
0:00:12.7]} 44... Rxg3+ {[%clk 0:00:33.3]} 45. Kh6 {[%clk 0:00:11.4]} 45... Rxe3
{[%clk 0:00:31]} 46. a5+ {[%clk 0:00:06.7]} 46... Ka7 {[%clk 0:00:26.3]} 47. a6
{[%clk 0:00:04.7]} 47... Re7 {[%clk 0:00:24.2]} 48. Kg5 {[%clk 0:00:03.1]} 48...
Kb6 {[%clk 0:00:22.3]} 49. Kf6 {[%clk 0:00:02.5]} 49... Rc7 {[%clk 0:00:20.6]}
0-1